lending/lending_fUSD_20250429
["ID","MTS","AMOUNT","RATE_DAILY","PERIOD"]
[359353666,1745949069474,-685.59,0.00029315,2]
[359353667,1745949069488,-470.0,0.00029315,2]
[359353668,1745949069498,-470.0,0.00029315,2]
[359353669,1745949069508,-539.63,0.00029315,2]
[359353670,1745949069518,-470.0,0.00029315,2]
[359353671,1745949069527,-151.0,0.00029315,7]
[359353672,1745949069536,-1581.86,0.00029315,2]
[359353673,1745949069546,-470.0,0.00029315,2]
[359353674,1745949069555,-470.0,0.00029315,2]
[359353675,1745949069565,-703.7,0.00029315,2]
[359353676,1745949069575,-470.0,0.00029315,2]
[359353677,1745949069585,-515.86,0.00029315,2]
[359353678,1745949069594,-2163.53,0.00029315,2]
[359353679,1745949069603,-470.0,0.00029315,2]
[359353680,1745949069615,-470.0,0.00029315,2]
[359353681,1745949069625,-1020.49,0.00029315,2]
[359353682,1745949069635,-470.0,0.00029315,2]
[359353683,1745949069645,-716.59,0.00029315,2]
[359353684,1745949069654,-470.0,0.00029315,2]
[359353685,1745949069663,-470.0,0.00029315,2]
[359353686,1745949069673,-470.0,0.00029315,2]
[359353687,1745949069682,-490.92,0.00029315,2]
[359353688,1745949069692,-470.0,0.00029315,2]
[359353689,1745949069701,-2329.69,0.00029315,2]
[359353690,1745949069711,-470.0,0.00029315,2]
[359353691,1745949069721,-470.0,0.00029315,2]
[359353692,1745949069730,-765.88,0.00029315,2]
[359353693,1745949069739,-470.0,0.00029315,2]
[359353694,1745949069749,-470.0,0.00029315,2]
[359353695,1745949069758,-470.0,0.00029315,2]
[359353696,1745949069768,-568.19,0.00029315,2]
[359353697,1745949069778,-1203.42,0.00029315,2]
[359353698,1745949069788,-645.19,0.00029315,2]
[359353699,1745949069797,-970.99,0.00029315,2]
[359353700,1745949069807,-901.28,0.00029315,2]
[359353701,1745949069817,-470.0,0.00029315,2]
[359353702,1745949069826,-701.64,0.00029315,2]
[359353703,1745949069836,-470.0,0.00029315,2]
[359353704,1745949069846,-470.0,0.00029315,2]
[359353705,1745949069855,-476.77741796,0.00029315,2]
[359353706,1745949069866,-1092.53,0.00029315,2]
[359353707,1745949069876,-470.0,0.00029315,2]
[359353708,1745949069885,-470.0,0.00029315,2]
[359353709,1745949070070,-470.0,0.00029315,2]
[359353710,1745949070080,-470.0,0.00029315,2]
[359353711,1745949070089,-903.38,0.00029315,2]
[359353712,1745949070099,-470.0,0.00029315,2]
[359353713,1745949070109,-1736.45,0.00029315,2]
[359353714,1745949070120,-470.0,0.00029315,2]
[359353715,1745949070132,-1436.64,0.00029315,2]
[359353716,1745949070142,-559.81,0.00029315,2]
[359353717,1745949070152,-2108.64,0.00029315,2]
[359353718,1745949070161,-960.7,0.00029315,2]
[359353719,1745949070171,-2353.36,0.00029315,2]
[359353720,1745949070180,-470.0,0.00029315,2]
[359353721,1745949070190,-745.59,0.00029315,2]
[359353722,1745949070199,-545.5,0.00029315,2]
[359353723,1745949070209,-549.47,0.00029315,2]
[359353724,1745949070218,-470.0,0.00029315,2]
[359353725,1745949070227,-586.45,0.00029315,2]
[359353726,1745949070236,-470.0,0.00029315,2]
[359353727,1745949070245,-470.0,0.00029315,2]
[359353728,1745949070255,-770.83,0.00029315,2]
[359353729,1745949070264,-797.04,0.00029315,2]
[359353730,1745949070274,-543.81,0.00029315,2]
[359353731,1745949070283,-885.12,0.00029315,2]
[359353732,1745949070293,-470.0,0.00029315,2]
[359353733,1745949070302,-562.35,0.00029315,2]
[359353734,1745949070311,-151.0,0.00029315,7]
[359353735,1745949070321,-476.24,0.00029315,2]
[359353736,1745949070330,-880.52,0.00029315,2]
[359353737,1745949070339,-915.71,0.00029315,2]
[359353738,1745949070349,-470.0,0.00029315,2]
[359353739,1745949070359,-820.44,0.00029315,2]
[359353740,1745949070371,-470.0,0.00029315,2]
[359353741,1745949070379,-470.0,0.00029315,2]
[359353742,1745949070388,-625.99,0.00029315,2]
[359353743,1745949070397,-470.0,0.00029315,2]
[359353744,1745949070407,-847.38,0.00029315,2]
[359353745,1745949070417,-568.66,0.00029315,2]
[359353746,1745949070427,-902.33,0.00029315,2]
[359353747,1745949070437,-486.67,0.00029315,2]
[359353748,1745949070447,-682.29,0.00029315,2]
[359353749,1745949070458,-3039.36,0.00029315,2]
[359353750,1745949070468,-474.23,0.00029315,2]
[359353751,1745949070479,-151.0,0.00029315,7]
[359353752,1745949070490,-470.0,0.00029315,2]
[359353753,1745949070501,-470.0,0.00029315,2]
[359353754,1745949070510,-470.0,0.00029315,2]
[359353755,1745949070520,-613.1,0.00029315,2]
[359353756,1745949070532,-683.49,0.00029315,2]
[359353757,1745949070543,-470.0,0.00029315,2]
[359353758,1745949070555,-537.75,0.00029315,2]
[359353759,1745949070566,-595.72,0.00029315,2]
[359353760,1745949070577,-539.83,0.00029315,2]
[359353761,1745949070589,-344.26773494,0.00029315,2]
[359353762,1745949070599,-470.0,0.00029315,2]
[359353763,1745949070609,-470.0,0.00029315,2]
[359353764,1745949070622,-470.0,0.00029315,2]
[359353765,1745949070633,-6080.07,0.00029315,2]
[359353766,1745949070644,-481.77,0.00029315,2]
[359353767,1745949070657,-622.98,0.00029315,2]
[359353768,1745949070668,-520.98,0.00029315,2]
[359353769,1745949070679,-470.0,0.00029315,2]
[359353770,1745949070690,-869.31,0.00029315,2]
[359353771,1745949070702,-704.81,0.00029315,2]
[359353772,1745949070713,-470.0,0.00029315,2]
[359353773,1745949070723,-492.66,0.00029315,2]
[359353774,1745949070734,-12545.32,0.00029315,2]
[359353775,1745949070745,-783.52,0.00029315,2]
[359353776,1745949070756,-557.05,0.00029315,2]
[359353777,1745949070767,-470.0,0.00029315,2]
[359353778,1745949070778,-470.0,0.00029315,2]
[359353779,1745949070788,-531.21,0.00029315,2]
[359353780,1745949070799,-470.0,0.00029315,2]
[359353781,1745949070811,-488.6,0.00029315,2]
[359353782,1745949070823,-636.94,0.00029315,2]
[359353783,1745949070833,-1144.88,0.00029315,2]
[359353784,1745949070843,-470.0,0.00029315,2]
[359353785,1745949070853,-624.4,0.00029315,2]
[359353786,1745949070864,-650.35,0.00029315,2]
[359353787,1745949070873,-470.0,0.00029315,2]
[359353788,1745949070883,-673.11,0.00029315,2]
[359353789,1745949070892,-470.0,0.00029315,2]
[359353790,1745949070902,-470.0,0.00029315,2]
[359353791,1745949070911,-472.75,0.00029315,2]
[359353792,1745949070921,-470.0,0.00029315,2]
[359353793,1745949070931,-470.0,0.00029315,2]
[359353794,1745949070941,-6481.15,0.00029315,2]
[359353795,1745949070950,-505.43,0.00029315,2]
[359353796,1745949070960,-198.46884613,0.00029315,2]
[359353797,1745949070971,-470.0,0.00029315,2]
[359353798,1745949070981,-470.0,0.00029315,2]
[359353799,1745949070990,-470.0,0.00029315,2]
[359353800,1745949071000,-61295.82,0.00029315,2]
[359353801,1745949071009,-482.94,0.00029315,2]
[359353802,1745949071019,-606.96,0.00029315,2]
[359353803,1745949071029,-470.0,0.00029315,2]
[359353804,1745949071040,-470.0,0.00029315,2]
[359353805,1745949071051,-447.31984893,0.00029315,2]
[359353806,1745949071061,-470.0,0.00029315,2]
[359353807,1745949071071,-470.0,0.00029315,2]
[359353808,1745949071081,-586.56,0.00029315,2]
[359353809,1745949071091,-1001.6,0.00029315,2]
[359353810,1745949071100,-470.0,0.00029315,2]
[359353811,1745949071109,-470.0,0.00029315,2]
[359353812,1745949071119,-470.0,0.00029315,2]
[359353813,1745949071129,-470.0,0.00029315,2]
[359353814,1745949071139,-7239.44,0.00029315,2]
[359353815,1745949071149,-470.0,0.00029315,2]
[359353816,1745949071158,-610.17,0.00029315,2]
[359353817,1745949071168,-470.0,0.00029315,2]
[359353818,1745949071178,-6805.43,0.00029315,2]
[359353819,1745949071188,-2927.0,0.00029315,2]
[359353820,1745949071198,-470.0,0.00029315,2]
[359353821,1745949071208,-470.0,0.00029315,2]
[359353822,1745949071219,-1000.0,0.00029367,2]
[359353823,1745949071230,-193.2045999,0.0002938,2]
[359353824,1745949071241,-1097.76173594,0.00029405,2]
[359353825,1745949071251,-150.0,0.0002942,2]
[359353826,1745949071261,-150.0,0.00029427,2]
[359353827,1745949071272,-333.59446545,0.00029462,2]
[359353828,1745949071283,-1234.56222822,0.00029484,2]
[359353829,1745949071293,-577.06893299,0.00029489,2]
[359353830,1745949071304,-18334.33551733,0.00029489,2]
[359353831,1745949071315,-9945.25604606,0.00029489,2]
[359353832,1745949071325,-568.59,0.0002951,2]
[359353833,1745949071335,-150.0,0.0002958,2]
[359353834,1745949071346,-43808.5622194,0.0002958,2]
[359353835,1745949071357,-3402.46960673,0.00029584,2]
[359353836,1745949071368,-500.0,0.00029587,2]
[359353837,1745949071379,-500.0,0.00029588,2]
[359353838,1745949071388,-3823.23,0.00029588,2]
[359353839,1745949071398,-2052.75,0.00029588,2]
[359353840,1745949071408,-2047.07,0.00029588,2]
[359353841,1745949071418,-568.59,0.00029588,2]
[359353842,1745949071431,-499.99999999,0.00029589,2]
[359353843,1745949071449,-150.0,0.00029589,2]
[359353844,1745949071464,-519.67,0.00029589,2]
[359353845,1745949071481,-498.52,0.00029589,2]
[359353846,1745949071496,-470.0,0.00029589,2]
[359353847,1745949071513,-470.0,0.00029589,2]
[359353848,1745949071527,-470.0,0.00029589,2]
[359353849,1745949071540,-470.0,0.00029589,2]
[359353850,1745949071555,-537.97,0.00029589,2]
[359353851,1745949071571,-470.0,0.00029589,2]
[359353852,1745949071587,-470.0,0.00029589,2]
[359353853,1745949071602,-470.0,0.00029589,2]
[359353854,1745949071619,-426.26135361,0.00029589,2]
[359353855,1745949071636,-470.0,0.00029589,2]
[359353856,1745949071650,-1113.6,0.00029589,2]
[359353857,1745949071665,-470.0,0.00029589,2]
[359353858,1745949071681,-611.04,0.00029589,2]
[359353859,1745949071695,-470.0,0.00029589,2]
[359353860,1745949071708,-470.0,0.00029589,2]
[359353861,1745949071722,-631.2,0.00029589,2]
[359353862,1745949071738,-564.79,0.00029589,2]
[359353863,1745949071750,-668.5,0.00029589,2]
[359353864,1745949071762,-826.62,0.00029589,2]
[359353865,1745949071777,-470.0,0.00029589,2]
[359353866,1745949071791,-470.0,0.00029589,2]
[359353867,1745949071803,-470.0,0.00029589,2]
[359353868,1745949071816,-470.0,0.00029589,2]
[359353869,1745949071829,-800.64,0.00029589,2]
[359353870,1745949071842,-470.0,0.00029589,2]
[359353871,1745949071855,-470.0,0.00029589,2]
[359353872,1745949071868,-502.1,0.00029589,2]
[359353873,1745949071881,-470.0,0.00029589,2]
[359353874,1745949071894,-470.0,0.00029589,2]
[359353875,1745949071907,-618.97784003,0.00029589,2]
[359353876,1745949071920,-2160.32,0.00029589,2]
[359353877,1745949071932,-470.0,0.00029589,2]
[359353878,1745949071945,-151.0,0.00029589,2]
[359353879,1745949071957,-470.0,0.00029589,2]
[359353880,1745949071970,-1312.33,0.00029589,2]
[359353881,1745949071983,-470.0,0.00029589,2]
[359353882,1745949071996,-548.44,0.00029589,2]
[359353883,1745949072010,-2312.86,0.00029589,2]
[359353884,1745949072022,-470.0,0.00029589,2]
[359353885,1745949072035,-470.0,0.00029589,2]
[359353886,1745949072053,-470.0,0.00029589,2]
[359353887,1745949072066,-484.25,0.00029589,2]
[359353888,1745949072079,-470.0,0.00029589,2]
[359353889,1745949072092,-470.0,0.00029589,2]
[359353890,1745949072105,-470.0,0.00029589,2]
[359353891,1745949072122,-470.0,0.00029589,2]
[359353892,1745949072135,-470.0,0.00029589,2]
[359353893,1745949072148,-470.0,0.00029589,2]
[359353894,1745949072161,-470.0,0.00029589,2]
[359353895,1745949072173,-5959.741954,0.00029589,2]
[359353896,1745949072186,-470.0,0.00029589,2]
[359353897,1745949072199,-470.0,0.00029589,2]
[359353898,1745949072212,-470.0,0.00029589,2]
[359353899,1745949072225,-470.0,0.00029589,2]
[359353900,1745949072238,-470.0,0.00029589,2]
[359353901,1745949072250,-470.0,0.00029589,2]
[359353902,1745949072263,-470.0,0.00029589,2]
[359353903,1745949072277,-470.0,0.00029589,2]
[359353904,1745949072289,-659.334822,0.00029589,2]
[359353905,1745949072303,-657.74,0.00029589,2]
[359353906,1745949072319,-486.33,0.00029589,2]
[359353907,1745949072332,-470.0,0.00029589,2]
[359353908,1745949072344,-470.0,0.00029589,2]
[359353909,1745949072357,-470.0,0.00029589,2]
[359353910,1745949072372,-437.515976,0.00029589,2]
[359353911,1745949072385,-470.0,0.00029589,2]
[359353912,1745949072399,-542.45,0.00029589,2]
[359353913,1745949072411,-656.69,0.00029589,2]
[359353914,1745949072424,-552.91,0.00029589,2]
[359353915,1745949072438,-470.0,0.00029589,2]
[359353916,1745949072452,-374.17143955,0.00029589,2]
[359353917,1745949072464,-470.0,0.00029589,2]
[359353918,1745949072479,-610.66,0.00029589,2]
[359353919,1745949072491,-551.88470636,0.00029589,2]
[359353920,1745949072504,-470.0,0.00029589,2]
[359353921,1745949072518,-558.47,0.00029589,2]
[359353922,1745949072531,-471.31,0.00029589,2]
[359353923,1745949072544,-1049.74,0.00029589,2]
[359353924,1745949072557,-470.0,0.00029589,2]
[359353925,1745949072571,-566.36,0.00029589,2]
[359353926,1745949072584,-470.0,0.00029589,2]
[359353927,1745949072598,-470.0,0.00029589,2]
[359353928,1745949072612,-534.78,0.00029589,2]
[359353929,1745949072626,-563.33,0.00029589,2]
[359353930,1745949072640,-372.483872,0.00029589,2]
[359353931,1745949072655,-470.0,0.00029589,2]
[359353932,1745949072668,-470.0,0.00029589,2]
[359353933,1745949072681,-470.0,0.00029589,2]
[359353934,1745949072694,-557.82,0.00029589,2]
[359353935,1745949072708,-1537.22,0.00029589,2]
[359353936,1745949072720,-383.78014212,0.00029589,2]
[359353937,1745949072734,-496.59,0.00029589,2]
[359353938,1745949072746,-652.05,0.00029589,2]
[359353939,1745949072762,-470.0,0.00029589,2]
[359353940,1745949072777,-1146.41,0.00029589,2]
[359353941,1745949072790,-579.71,0.00029589,2]
[359353942,1745949072803,-470.0,0.00029589,2]
[359353943,1745949072816,-470.0,0.00029589,2]
[359353944,1745949072829,-470.0,0.00029589,2]
[359353945,1745949072842,-470.0,0.00029589,2]
[359353946,1745949072854,-704.42,0.00029589,2]
[359353947,1745949072868,-470.0,0.00029589,2]
[359353948,1745949072882,-470.0,0.00029589,2]
[359353949,1745949072895,-470.0,0.00029589,2]
[359353950,1745949072907,-470.0,0.00029589,2]
[359353951,1745949072918,-470.0,0.00029589,2]
[359353952,1745949072927,-470.0,0.00029589,2]
[359353953,1745949072936,-625.71,0.00029589,2]
[359353954,1745949072945,-2279.31,0.00029589,2]
[359353955,1745949072955,-470.0,0.00029589,2]
[359353956,1745949072964,-470.0,0.00029589,2]
[359353957,1745949072974,-470.0,0.00029589,2]
[359353958,1745949072983,-544.48,0.00029589,2]
[359353959,1745949072992,-904.77,0.00029589,2]
[359353960,1745949073001,-1788.53,0.00029589,2]
[359353961,1745949073011,-510.11,0.00029589,2]
[359353962,1745949073021,-470.0,0.00029589,2]
[359353963,1745949073031,-612.33376121,0.00029589,2]
[359353964,1745949073043,-470.0,0.00029589,2]
[359353965,1745949073053,-685.59,0.00029589,2]
[359353966,1745949073063,-470.0,0.00029589,2]
[359353967,1745949073073,-470.0,0.00029589,2]
[359353968,1745949073083,-539.63,0.00029589,2]
[359353969,1745949073094,-470.0,0.00029589,2]
[359353970,1745949073104,-1581.86,0.00029589,2]
[359353971,1745949073115,-470.0,0.00029589,2]
[359353972,1745949073424,-470.0,0.00029589,2]
[359353973,1745949073451,-703.7,0.00029589,2]
[359353974,1745949073469,-470.0,0.00029589,2]
[359353975,1745949073479,-2163.53,0.00029589,2]
[359353976,1745949073489,-515.86,0.00029589,2]
[359353977,1745949073499,-470.0,0.00029589,2]
[359353978,1745949073509,-470.0,0.00029589,2]
[359353979,1745949073519,-1020.49,0.00029589,2]
[359353980,1745949073528,-470.0,0.00029589,2]
[359353981,1745949073539,-716.59,0.00029589,2]
[359353982,1745949073548,-470.0,0.00029589,2]
[359353983,1745949073558,-470.0,0.00029589,2]
[359353984,1745949073567,-470.0,0.00029589,2]
[359353985,1745949073579,-490.92,0.00029589,2]
[359353986,1745949073588,-470.0,0.00029589,2]
[359353987,1745949073598,-2329.69,0.00029589,2]
[359353988,1745949073608,-470.0,0.00029589,2]
[359353989,1745949073618,-470.0,0.00029589,2]
[359353990,1745949073628,-765.88,0.00029589,2]
[359353991,1745949073638,-470.0,0.00029589,2]
[359353992,1745949073647,-470.0,0.00029589,2]
[359353993,1745949073657,-470.0,0.00029589,2]
[359353994,1745949073667,-568.19,0.00029589,2]
[359353995,1745949073677,-1203.42,0.00029589,2]
[359353996,1745949073686,-645.19,0.00029589,2]
[359353997,1745949073696,-970.99,0.00029589,2]
[359353998,1745949073706,-901.28,0.00029589,2]
[359353999,1745949073715,-470.0,0.00029589,2]
[359354000,1745949073725,-701.64,0.00029589,2]
[359354001,1745949073735,-470.0,0.00029589,2]
[359354002,1745949073745,-470.0,0.00029589,2]
[359354003,1745949073755,-1092.53,0.00029589,2]
[359354004,1745949073765,-470.0,0.00029589,2]
[359354005,1745949073775,-470.0,0.00029589,2]
[359354006,1745949073784,-470.0,0.00029589,2]
[359354007,1745949073794,-470.0,0.00029589,2]
[359354008,1745949073803,-903.38,0.00029589,2]
[359354009,1745949073813,-470.0,0.00029589,2]
[359354010,1745949073823,-1736.45,0.00029589,2]
[359354011,1745949073833,-470.0,0.00029589,2]
[359354012,1745949073842,-150.0,0.00029589,2]
[359354013,1745949073851,-1436.64,0.00029589,2]
[359354014,1745949073861,-559.81,0.00029589,2]
[359354015,1745949073872,-500.0,0.00029589,2]
[359354016,1745949073881,-2108.64,0.00029589,2]
[359354017,1745949073891,-960.7,0.00029589,2]
[359354018,1745949073901,-2353.36,0.00029589,2]
[359354019,1745949073910,-470.0,0.00029589,2]
[359354020,1745949073919,-500.0,0.00029589,2]
[359354021,1745949073928,-745.59,0.00029589,2]
[359354022,1745949073938,-545.5,0.00029589,2]
[359354023,1745949073947,-549.47,0.00029589,2]
[359354024,1745949073956,-470.0,0.00029589,2]
[359354025,1745949073966,-586.45,0.00029589,2]
[359354026,1745949073975,-470.0,0.00029589,2]
[359354027,1745949073984,-770.83,0.00029589,2]
[359354028,1745949073994,-470.0,0.00029589,2]
[359354029,1745949074004,-797.04,0.00029589,2]
[359354030,1745949074013,-543.81,0.00029589,2]
[359354031,1745949074022,-885.12,0.00029589,2]
[359354032,1745949074032,-470.0,0.00029589,2]
[359354033,1745949074046,-562.35,0.00029589,2]
[359354034,1745949074055,-476.24,0.00029589,2]
[359354035,1745949074064,-880.52,0.00029589,2]
[359354036,1745949074074,-915.71,0.00029589,2]
[359354037,1745949074084,-470.0,0.00029589,2]
[359354038,1745949074094,-820.44,0.00029589,2]
[359354039,1745949074104,-470.0,0.00029589,2]
[359354040,1745949074114,-470.0,0.00029589,2]
[359354041,1745949074126,-625.99,0.00029589,2]
[359354042,1745949074135,-470.0,0.00029589,2]
[359354043,1745949074145,-847.38,0.00029589,2]
[359354044,1745949074155,-150.0,0.00029589,2]
[359354045,1745949074164,-568.66,0.00029589,2]
[359354046,1745949074174,-902.33,0.00029589,2]
[359354047,1745949074184,-486.67,0.00029589,2]
[359354048,1745949074194,-150.0,0.00029589,2]
[359354049,1745949074203,-682.29,0.00029589,2]
[359354050,1745949074213,-3039.36,0.00029589,2]
[359354051,1745949074223,-474.23,0.00029589,2]
[359354052,1745949074232,-500.0,0.00029589,2]
[359354053,1745949074242,-470.0,0.00029589,2]
[359354054,1745949074251,-470.0,0.00029589,2]
[359354055,1745949074262,-470.0,0.00029589,2]
[359354056,1745949074271,-613.1,0.00029589,2]
[359354057,1745949074281,-151.0,0.00029589,7]
[359354058,1745949074291,-683.49,0.00029589,2]
[359354059,1745949074300,-470.0,0.00029589,2]
[359354060,1745949074310,-537.75,0.00029589,2]
[359354061,1745949074319,-539.83,0.00029589,2]
[359354062,1745949074329,-595.72,0.00029589,2]
[359354063,1745949074338,-470.0,0.00029589,2]
[359354064,1745949074347,-470.0,0.00029589,2]
[359354065,1745949074356,-470.0,0.00029589,2]
[359354066,1745949074366,-6080.07,0.00029589,2]
[359354067,1745949074376,-481.77,0.00029589,2]
[359354068,1745949074386,-622.98,0.00029589,2]
[359354069,1745949074395,-520.98,0.00029589,2]
[359354070,1745949074405,-151.0,0.00029589,7]
[359354071,1745949074414,-470.0,0.00029589,2]
[359354072,1745949074424,-869.31,0.00029589,2]
[359354073,1745949074433,-704.81,0.00029589,2]
[359354074,1745949074443,-470.0,0.00029589,2]
[359354075,1745949074452,-492.66,0.00029589,2]
[359354076,1745949074461,-12545.32,0.00029589,2]
[359354077,1745949074471,-783.52,0.00029589,2]
[359354078,1745949074481,-557.05,0.00029589,2]
[359354079,1745949074490,-470.0,0.00029589,2]
[359354080,1745949074499,-470.0,0.00029589,2]
[359354081,1745949074508,-531.21,0.00029589,2]
[359354082,1745949074518,-470.0,0.00029589,2]
[359354083,1745949074527,-488.6,0.00029589,2]
[359354084,1745949074537,-636.94,0.00029589,2]
[359354085,1745949074547,-1144.88,0.00029589,2]
[359354086,1745949074556,-470.0,0.00029589,2]
[359354087,1745949074565,-624.4,0.00029589,2]
[359354088,1745949074575,-650.35,0.00029589,2]
[359354089,1745949074585,-335.01380903,0.00029589,2]
[359354090,1745949074594,-673.11,0.00029589,2]
[359354091,1745949074604,-470.0,0.00029589,2]
[359354092,1745949074614,-470.0,0.00029589,2]
[359354093,1745949074623,-472.75,0.00029589,2]
[359354094,1745949074633,-150.00057937,0.00029589,2]
[359354095,1745949074643,-470.0,0.00029589,2]
[359354096,1745949074653,-150.0,0.00029589,2]
[359354097,1745949074662,-470.0,0.00029589,2]
[359354098,1745949074672,-6481.15,0.00029589,2]
[359354099,1745949074681,-505.43,0.00029589,2]
[359354100,1745949074691,-470.0,0.00029589,2]
[359354101,1745949074702,-470.0,0.00029589,2]
[359354102,1745949074711,-150.0,0.00029589,2]
[359354103,1745949074721,-470.0,0.00029589,2]
[359354104,1745949074731,-150.0,0.00029589,2]
[359354105,1745949074741,-500.0,0.00029589,2]
[359354106,1745949074751,-61295.82,0.00029589,2]
[359354107,1745949074761,-150.0,0.00029589,2]
[359354108,1745949074770,-482.94,0.00029589,2]
[359354109,1745949074780,-606.96,0.00029589,2]
[359354110,1745949074790,-325.02,0.00029589,2]
[359354111,1745949074799,-470.0,0.00029589,2]
[359354112,1745949074809,-470.0,0.00029589,2]
[359354113,1745949074819,-470.0,0.00029589,2]
[359354114,1745949074830,-150.0,0.00029589,2]
[359354115,1745949074839,-586.56,0.00029589,2]
[359354116,1745949074849,-1001.6,0.00029589,2]
[359354117,1745949074859,-150.0,0.00029589,2]
[359354118,1745949074868,-470.0,0.00029589,2]
[359354119,1745949074878,-500.0,0.00029589,2]
[359354120,1745949074887,-470.0,0.00029589,2]
[359354121,1745949074896,-470.0,0.00029589,2]
[359354122,1745949074906,-470.0,0.00029589,2]
[359354123,1745949074916,-151.0,0.00029589,7]
[359354124,1745949074926,-7239.44,0.00029589,2]
[359354125,1745949074936,-470.0,0.00029589,2]
[359354126,1745949074946,-610.17,0.00029589,2]
[359354127,1745949074956,-200.86071847,0.00029589,2]
[359354128,1745949074965,-6805.43,0.00029589,2]
[359354129,1745949074975,-2927.0,0.00029589,2]
[359354130,1745949074985,-470.0,0.00029589,2]
[359354131,1745949074994,-470.0,0.00029589,2]
[359354132,1745949075003,-151.0,0.00029591,7]
[359354133,1745949075013,-803.5962958,0.00029591,2]
[359354134,1745949075022,-283.29008825,0.00029591,2]
[359354135,1745949075032,-4544.5806893,0.00029591,2]
[359354136,1745949075042,-231.85209,0.00029611,7]
[359354137,1745949075052,-2082.1308888,0.00029659,8]
[359354138,1745949075061,-470.0,0.00029703,2]
[359354139,1745949075071,-1097.76173594,0.00029721,2]
[359354140,1745949075081,-152.0,0.00029735,3]
[359354141,1745949075091,-568.59,0.00029776,2]
[359354142,1745949075101,-51455.88,0.00029777,2]
[359354143,1745949075110,-151.0,0.00029777,7]
[359354144,1745949075120,-151.0,0.00029777,7]
[359354145,1745949075130,-151.0,0.00029777,7]
[359354146,1745949075140,-26984.05,0.00029815,10]
[359354147,1745949075149,-937.83,0.00029815,2]
[359354148,1745949075159,-238.46551101,0.00029825,2]
[359354149,1745949075169,-500.0,0.00029861,2]
[359354150,1745949075178,-500.0,0.00029862,2]
[359354151,1745949075188,-3823.23,0.00029862,2]
[359354152,1745949075197,-2052.75,0.00029862,2]
[359354153,1745949075207,-2047.07,0.00029862,2]
[359354154,1745949075217,-151.0,0.00029862,7]
[359354155,1745949075227,-272.300215,0.00029862,7]
[359354156,1745949075237,-568.59,0.00029862,2]
[359354157,1745949075246,-150.0,0.00029863,2]
[359354158,1745949075255,-500.0,0.00029863,2]
[359354159,1745949075265,-500.0,0.00029863,2]
[359354160,1745949075275,-150.0,0.00029863,2]
[359354161,1745949075284,-508.87962394,0.00029863,2]
[359354162,1745949075294,-500.0,0.00029863,2]
[359354163,1745949075303,-150.0,0.00029863,2]
[359354164,1745949075313,-150.0,0.00029863,2]
[359354165,1745949075323,-500.0,0.00029863,2]